[Event "*** Titled Tuesday Blitz"]
[Site "Chess.com"]
[Date "2021.04.06"]
[Round "10"]
[White "Chessbard1972"]
[Black "Mikhal867"]
[Result "1-0"]
[WhiteElo "2331"]
[BlackElo "2432"]
[TimeControl "180+1"]
[EndTime "11:55:29 PDT"]
[Termination "Chessbard1972 won by checkmate"]

1. e4 {[%clk 0:03:00.9]} 1... g6 {[%clk 0:02:59.5]} 2. d4 {[%clk 0:03:00.1]}
2... Bg7 {[%clk 0:02:58.8]} 3. Nc3 {[%clk 0:03:00.6]} 3... d6 {[%clk 0:02:57.4]}
4. Be3 {[%clk 0:03:00]} 4... a6 {[%clk 0:02:56]} 5. a4 {[%clk 0:02:59.5]} 5...
b6 {[%clk 0:02:55.4]} 6. f3 {[%clk 0:02:58.1]} 6... Nd7 {[%clk 0:02:53.8]} 7.
Qd2 {[%clk 0:02:58.4]} 7... Bb7 {[%clk 0:02:51.9]} 8. Bc4 {[%clk 0:02:57]} 8...
e6 {[%clk 0:02:51.3]} 9. Nge2 {[%clk 0:02:55.4]} 9... Ne7 {[%clk 0:02:47.6]} 10.
O-O {[%clk 0:02:52.6]} 10... c5 {[%clk 0:02:41.4]} 11. Bh6 {[%clk 0:02:48.4]}
11... O-O {[%clk 0:02:34]} 12. Bxg7 {[%clk 0:02:47.8]} 12... Kxg7 {[%clk
0:02:33.8]} 13. f4 {[%clk 0:02:41.7]} 13... d5 {[%clk 0:02:32.4]} 14. exd5
{[%clk 0:02:35.3]} 14... exd5 {[%clk 0:02:31.3]} 15. Ba2 {[%clk 0:02:33.6]}
15... c4 {[%clk 0:02:30.7]} 16. b3 {[%clk 0:02:31.7]} 16... Rc8 {[%clk
0:02:22.8]} 17. bxc4 {[%clk 0:02:30.7]} 17... dxc4 {[%clk 0:02:22.5]} 18. d5
{[%clk 0:02:30.4]} 18... Nf6 {[%clk 0:02:19.3]} 19. d6 {[%clk 0:02:22.3]} 19...
Nf5 {[%clk 0:02:19]} 20. Rad1 {[%clk 0:02:19.1]} 20... Rc6 {[%clk 0:02:18.3]}
21. Nd4 {[%clk 0:02:07.9]} 21... Rc5 {[%clk 0:01:35.9]} 22. Nxf5+ {[%clk
0:02:05.2]} 22... gxf5 {[%clk 0:01:34.3]} 23. Qd4 {[%clk 0:02:02.4]} 23... Kh8
{[%clk 0:01:27.2]} 24. Bxc4 {[%clk 0:01:57.6]} 24... Rg8 {[%clk 0:01:27]} 25.
Rf2 {[%clk 0:01:39.6]} 25... Rg6 {[%clk 0:01:22.7]} 26. Bxf7 {[%clk 0:01:35.1]}
26... Rh6 {[%clk 0:01:19.7]} 27. Re1 {[%clk 0:01:29.3]} 27... Kg7 {[%clk
0:00:57.8]} 28. Re7 {[%clk 0:01:26.5]} 28... Rxc3 {[%clk 0:00:51.1]} 29. Rxb7
{[%clk 0:01:13.6]} 29... Qc8 {[%clk 0:00:38.5]} 30. Bd5+ {[%clk 0:00:53.8]}
30... Kf8 {[%clk 0:00:28.2]} 31. Rf7+ {[%clk 0:00:51.5]} 31... Ke8 {[%clk
0:00:27.7]} 32. Rxf6 {[%clk 0:00:47.2]} 32... Rxf6 {[%clk 0:00:25.6]} 33. Qxf6
{[%clk 0:00:46.5]} 33... Rxc2 {[%clk 0:00:14.3]} 34. Qe7# {[%clk 0:00:45.6]} 1-0

[Event "*** Titled Tuesday Blitz"]
[Site "Chess.com"]
[Date "2021.04.06"]
[Round "10"]
[White "Gerodot71"]
[Black "SargissyanSargis"]
[Result "1-0"]
[WhiteElo "2551"]
[BlackElo "2387"]
[TimeControl "180+1"]
[EndTime "11:55:32 PDT"]
[Termination "Gerodot71 won on time"]

1. d4 {[%clk 0:03:00.9]} 1... Nf6 {[%clk 0:02:59.5]} 2. c4 {[%clk 0:02:58]} 2...
g6 {[%clk 0:02:59.5]} 3. Nc3 {[%clk 0:02:57.9]} 3... d5 {[%clk 0:02:58.2]} 4.
Bg5 {[%clk 0:02:57.4]} 4... Ne4 {[%clk 0:02:55.9]} 5. Bh4 {[%clk 0:02:57.4]}
5... Nxc3 {[%clk 0:02:49.3]} 6. bxc3 {[%clk 0:02:58.3]} 6... Bg7 {[%clk
0:02:47.8]} 7. e3 {[%clk 0:02:51.4]} 7... c5 {[%clk 0:02:41.5]} 8. Nf3 {[%clk
0:02:47.9]} 8... Nc6 {[%clk 0:02:38.9]} 9. Be2 {[%clk 0:02:41.8]} 9... O-O
{[%clk 0:02:20.6]} 10. O-O {[%clk 0:02:41.2]} 10... dxc4 {[%clk 0:02:00.3]} 11.
Bxc4 {[%clk 0:02:38.8]} 11... Na5 {[%clk 0:01:56.4]} 12. Be2 {[%clk 0:02:34.9]}
12... Be6 {[%clk 0:01:50.1]} 13. Qa4 {[%clk 0:02:25.4]} 13... Rc8 {[%clk
0:01:35.7]} 14. Rfc1 {[%clk 0:02:20.8]} 14... b6 {[%clk 0:01:28.4]} 15. Rab1
{[%clk 0:02:09.8]} 15... Bd5 {[%clk 0:01:10]} 16. h3 {[%clk 0:02:00.1]} 16...
Bc6 {[%clk 0:01:08.2]} 17. Qa3 {[%clk 0:01:56.2]} 17... c4 {[%clk 0:00:57.3]}
18. Bxe7 {[%clk 0:01:54.9]} 18... Qd7 {[%clk 0:00:51.2]} 19. Bxf8 {[%clk
0:01:54.2]} 19... Bxf8 {[%clk 0:00:50.4]} 20. Qb2 {[%clk 0:01:52.9]} 20... Qd5
{[%clk 0:00:50.6]} 21. Ne1 {[%clk 0:01:50.1]} 21... Qg5 {[%clk 0:00:33.3]} 22.
Bf3 {[%clk 0:01:48.8]} 22... Bd7 {[%clk 0:00:32.8]} 23. Kh1 {[%clk 0:01:44.4]}
23... Bd6 {[%clk 0:00:32.5]} 24. Qe2 {[%clk 0:01:36.5]} 24... Qh4 {[%clk
0:00:30.1]} 25. Kg1 {[%clk 0:01:31.8]} 25... Re8 {[%clk 0:00:26.3]} 26. Qf1
{[%clk 0:01:26.6]} 26... Bf5 {[%clk 0:00:25.8]} 27. Rb5 {[%clk 0:01:24.4]} 27...
Bd7 {[%clk 0:00:24.2]} 28. Rb2 {[%clk 0:01:24]} 28... f5 {[%clk 0:00:21.8]} 29.
g3 {[%clk 0:01:23.9]} 29... Qh6 {[%clk 0:00:21]} 30. h4 {[%clk 0:01:21.5]} 30...
g5 {[%clk 0:00:19.7]} 31. hxg5 {[%clk 0:01:21.3]} 31... Qxg5 {[%clk 0:00:19.8]}
32. Ng2 {[%clk 0:01:21.8]} 32... Kg7 {[%clk 0:00:13.2]} 33. Nf4 {[%clk
0:01:21.8]} 33... Kg8 {[%clk 0:00:13.1]} 34. Qh3 {[%clk 0:01:18.7]} 34... Re7
{[%clk 0:00:07.1]} 35. Kg2 {[%clk 0:01:18]} 35... Nc6 {[%clk 0:00:04.2]} 36. Rh1
{[%clk 0:01:14.1]} 36... Nd8 {[%clk 0:00:03.5]} 37. Qh4 {[%clk 0:01:12]} 37...
Qg7 {[%clk 0:00:03.1]} 38. Nh5 {[%clk 0:01:11]} 1-0

[Event "*** Titled Tuesday Blitz"]
[Site "Chess.com"]
[Date "2021.04.06"]
[Round "10"]
[White "KroshkaKami"]
[Black "CzechmVIII"]
[Result "1-0"]
[WhiteElo "2354"]
[BlackElo "2198"]
[TimeControl "180+1"]
[EndTime "11:55:32 PDT"]
[Termination "KroshkaKami won by checkmate"]

1. e4 {[%clk 0:03:00.9]} 1... c5 {[%clk 0:02:59.6]} 2. Nf3 {[%clk 0:02:57.7]}
2... d6 {[%clk 0:03:00]} 3. d4 {[%clk 0:02:56.5]} 3... cxd4 {[%clk 0:03:00.9]}
4. Nxd4 {[%clk 0:02:51]} 4... Nf6 {[%clk 0:03:01.4]} 5. Nc3 {[%clk 0:02:49.2]}
5... g6 {[%clk 0:03:01.9]} 6. Be3 {[%clk 0:02:41.7]} 6... Bg7 {[%clk 0:03:02.3]}
7. Bb5+ {[%clk 0:02:38.5]} 7... Bd7 {[%clk 0:02:58.7]} 8. f3 {[%clk 0:02:35.1]}
8... O-O {[%clk 0:02:53.4]} 9. Qd2 {[%clk 0:02:32.6]} 9... Nc6 {[%clk
0:02:48.1]} 10. Bxc6 {[%clk 0:02:26.5]} 10... bxc6 {[%clk 0:02:47.5]} 11. O-O-O
{[%clk 0:02:21.7]} 11... Rb8 {[%clk 0:02:43.7]} 12. Bh6 {[%clk 0:02:16.2]} 12...
Bxh6 {[%clk 0:02:21.8]} 13. Qxh6 {[%clk 0:02:17.1]} 13... c5 {[%clk 0:02:17.3]}
14. Nde2 {[%clk 0:01:59.8]} 14... Qa5 {[%clk 0:01:59.2]} 15. h4 {[%clk
0:01:53.4]} 15... Bb5 {[%clk 0:01:05]} 16. Nf4 {[%clk 0:01:44.5]} 16... Bc4
{[%clk 0:00:48.2]} 17. h5 {[%clk 0:01:38.7]} 17... Rxb2 {[%clk 0:00:41.8]} 18.
hxg6 {[%clk 0:00:37.9]} 18... Rfb8 {[%clk 0:00:14.7]} 19. Nh5 {[%clk 0:00:16.9]}
19... Nxh5 {[%clk 0:00:05.8]} 20. Qxh7+ {[%clk 0:00:15.5]} 20... Kf8 {[%clk
0:00:03.7]} 21. Qh8# {[%clk 0:00:15.9]} 1-0

[Event "*** Titled Tuesday Blitz"]
[Site "Chess.com"]
[Date "2021.04.06"]
[Round "10"]
[White "TioCridineno"]
[Black "ApoIogiA"]
[Result "1-0"]
[WhiteElo "2275"]
[BlackElo "2168"]
[TimeControl "180+1"]
[EndTime "11:55:34 PDT"]
[Termination "TioCridineno won on time"]

1. e4 {[%clk 0:03:00.9]} 1... c5 {[%clk 0:02:59.7]} 2. Nf3 {[%clk 0:03:01]} 2...
d6 {[%clk 0:02:59.8]} 3. d4 {[%clk 0:03:00.9]} 3... cxd4 {[%clk 0:03:00.7]} 4.
Nxd4 {[%clk 0:03:01.7]} 4... Nf6 {[%clk 0:03:01.6]} 5. Nc3 {[%clk 0:03:02.1]}
5... a6 {[%clk 0:03:02.5]} 6. Bg5 {[%clk 0:03:01.5]} 6... e6 {[%clk 0:03:02.6]}
7. f4 {[%clk 0:03:01.7]} 7... Nbd7 {[%clk 0:03:02.3]} 8. Qf3 {[%clk 0:03:02.3]}
8... Qc7 {[%clk 0:03:02.7]} 9. O-O-O {[%clk 0:03:02.9]} 9... b5 {[%clk
0:03:02.6]} 10. Bd3 {[%clk 0:03:03]} 10... Bb7 {[%clk 0:03:02.3]} 11. Rhe1
{[%clk 0:03:03.2]} 11... Qb6 {[%clk 0:03:01.7]} 12. Nb3 {[%clk 0:02:58.1]} 12...
Be7 {[%clk 0:02:44.2]} 13. Bh4 {[%clk 0:02:55.8]} 13... O-O {[%clk 0:02:43.3]}
14. Bf2 {[%clk 0:02:54.6]} 14... Qc7 {[%clk 0:02:39.5]} 15. g4 {[%clk
0:02:55.1]} 15... b4 {[%clk 0:02:27.9]} 16. Ne2 {[%clk 0:02:52.6]} 16... g5
{[%clk 0:02:06.1]} 17. fxg5 {[%clk 0:02:51.2]} 17... Ne5 {[%clk 0:02:05.7]} 18.
Qg2 {[%clk 0:02:46.3]} 18... Nfxg4 {[%clk 0:02:01.9]} 19. h4 {[%clk 0:02:39.3]}
19... a5 {[%clk 0:01:59.6]} 20. Kb1 {[%clk 0:02:38.6]} 20... a4 {[%clk
0:01:59.5]} 21. Nbd4 {[%clk 0:02:39]} 21... Nxf2 {[%clk 0:01:40.3]} 22. Qxf2
{[%clk 0:02:38.5]} 22... Rfc8 {[%clk 0:01:36.1]} 23. Rc1 {[%clk 0:02:35.5]}
23... Qb6 {[%clk 0:01:06.7]} 24. Qg3 {[%clk 0:02:34.3]} 24... Bf8 {[%clk
0:01:01.1]} 25. Nf3 {[%clk 0:02:25.3]} 25... Bg7 {[%clk 0:00:56.3]} 26. Nf4
{[%clk 0:02:25.3]} 26... Nxf3 {[%clk 0:00:48.7]} 27. Qxf3 {[%clk 0:02:24.9]}
27... a3 {[%clk 0:00:46]} 28. Nh5 {[%clk 0:02:20.2]} 28... axb2 {[%clk
0:00:18.4]} 29. Rcd1 {[%clk 0:02:19]} 29... Qa5 {[%clk 0:00:18.4]} 30. Bc4
{[%clk 0:02:07.7]} 30... Rxc4 {[%clk 0:00:17.7]} 31. Qb3 {[%clk 0:02:07.8]}
31... Rc3 {[%clk 0:00:16.2]} 32. Qxb2 {[%clk 0:02:08.1]} 32... Be5 {[%clk
0:00:10.1]} 33. Nf6+ {[%clk 0:02:02.7]} 33... Kf8 {[%clk 0:00:10.5]} 34. Nd7+
{[%clk 0:02:02.2]} 34... Ke7 {[%clk 0:00:10.2]} 35. Nxe5 {[%clk 0:02:02.2]}
35... dxe5 {[%clk 0:00:10.5]} 36. Re2 {[%clk 0:01:56.1]} 36... Rac8 {[%clk
0:00:10.3]} 37. Red2 {[%clk 0:01:55.8]} 37... R8c7 {[%clk 0:00:08.2]} 38. h5
{[%clk 0:01:55.8]} 38... Qc5 {[%clk 0:00:07.9]} 39. g6 {[%clk 0:01:53.2]} 39...
hxg6 {[%clk 0:00:07.3]} 40. hxg6 {[%clk 0:01:53.7]} 40... fxg6 {[%clk
0:00:08.2]} 41. Rh1 {[%clk 0:01:52.6]} 41... Bxe4 {[%clk 0:00:06.3]} 42. Rh7+
{[%clk 0:01:48.6]} 42... Kf6 {[%clk 0:00:06.7]} 43. Rxc7 {[%clk 0:01:45.4]}
43... Qxc7 {[%clk 0:00:07.1]} 44. Qc1 {[%clk 0:01:44.6]} 44... Bf5 {[%clk
0:00:06.2]} 45. Rg2 {[%clk 0:01:42]} 45... b3 {[%clk 0:00:06]} 46. Qg5+ {[%clk
0:01:41.8]} 46... Kf7 {[%clk 0:00:06.1]} 47. Rh2 {[%clk 0:01:33.2]} 47... bxa2+
{[%clk 0:00:03]} 48. Ka1 {[%clk 0:01:31.8]} 1-0

[Event "*** Titled Tuesday Blitz"]
[Site "Chess.com"]
[Date "2021.04.06"]
[Round "10"]
[White "eldur16"]
[Black "DenLaz"]
[Result "0-1"]
[WhiteElo "2602"]
[BlackElo "2840"]
[TimeControl "180+1"]
[EndTime "11:55:35 PDT"]
[Termination "DenLaz won by resignation"]

1. Nf3 {[%clk 0:03:00.9]} 1... d5 {[%clk 0:02:58.9]} 2. g3 {[%clk 0:03:00.5]}
2... g6 {[%clk 0:02:58.9]} 3. Bg2 {[%clk 0:02:59.4]} 3... Bg7 {[%clk 0:02:59.4]}
4. O-O {[%clk 0:02:59.4]} 4... e5 {[%clk 0:02:59.5]} 5. d3 {[%clk 0:02:58.3]}
5... Ne7 {[%clk 0:02:57.5]} 6. c4 {[%clk 0:02:56.6]} 6... dxc4 {[%clk
0:02:55.7]} 7. Qa4+ {[%clk 0:02:52.5]} 7... Nbc6 {[%clk 0:02:54.4]} 8. Qxc4
{[%clk 0:02:52.2]} 8... O-O {[%clk 0:02:53.5]} 9. a3 {[%clk 0:02:50.4]} 9... Be6
{[%clk 0:02:52.2]} 10. Qc2 {[%clk 0:02:49.9]} 10... h6 {[%clk 0:02:51.5]} 11.
Nbd2 {[%clk 0:02:49.5]} 11... a5 {[%clk 0:02:43.5]} 12. Rb1 {[%clk 0:02:46.4]}
12... g5 {[%clk 0:02:36.4]} 13. h3 {[%clk 0:02:39.1]} 13... Ng6 {[%clk
0:02:33.7]} 14. b4 {[%clk 0:02:36.6]} 14... axb4 {[%clk 0:02:31]} 15. axb4
{[%clk 0:02:36.4]} 15... Ra2 {[%clk 0:02:25.3]} 16. Qd1 {[%clk 0:02:33.7]} 16...
Bd5 {[%clk 0:02:19.7]} 17. b5 {[%clk 0:02:07.5]} 17... Nce7 {[%clk 0:02:16]} 18.
Bb2 {[%clk 0:01:55.6]} 18... Bxf3 {[%clk 0:01:59.8]} 19. Bxf3 {[%clk 0:01:38.9]}
19... Rxb2 {[%clk 0:01:57.7]} 20. Rxb2 {[%clk 0:01:38.2]} 20... e4 {[%clk
0:01:56.1]} 21. Rc2 {[%clk 0:01:17.2]} 21... exf3 {[%clk 0:01:54.9]} 22. Nxf3
{[%clk 0:01:17.2]} 22... Qd7 {[%clk 0:01:55.5]} 23. Kg2 {[%clk 0:01:10.8]} 23...
Nd5 {[%clk 0:01:54]} 24. Qd2 {[%clk 0:00:54]} 24... Ndf4+ {[%clk 0:01:33.8]} 25.
gxf4 {[%clk 0:00:52.9]} 25... Nxf4+ {[%clk 0:01:34.7]} 26. Kg1 {[%clk
0:00:51.2]} 26... Qxh3 {[%clk 0:01:34.7]} 27. Ne1 {[%clk 0:00:48.1]} 27... Be5
{[%clk 0:01:33.1]} 28. f3 {[%clk 0:00:27.6]} 28... Qg3+ {[%clk 0:01:26.8]} 29.
Kh1 {[%clk 0:00:27.1]} 29... Ng2 {[%clk 0:01:16.9]} 30. f4 {[%clk 0:00:19.7]}
30... Qh3+ {[%clk 0:01:15.8]} 31. Kg1 {[%clk 0:00:19.3]} 31... Bd4+ {[%clk
0:01:16.3]} 32. Rf2 {[%clk 0:00:17.8]} 32... Nxf4 {[%clk 0:01:11.3]} 33. e3
{[%clk 0:00:09.6]} 33... Bxe3 {[%clk 0:01:09.9]} 34. Qd1 {[%clk 0:00:08.9]}
34... Re8 {[%clk 0:01:07.4]} 35. Qf3 {[%clk 0:00:07.5]} 35... Bxf2+ {[%clk
0:00:58.9]} 36. Kxf2 {[%clk 0:00:07.6]} 36... Qh2+ {[%clk 0:00:57.6]} 37. Kf1
{[%clk 0:00:07.2]} 37... Rxe1+ {[%clk 0:00:56.2]} 0-1

[Event "*** Titled Tuesday Blitz"]
[Site "Chess.com"]
[Date "2021.04.06"]
[Round "10"]
[White "KacperPolOK"]
[Black "korbul"]
[Result "0-1"]
[WhiteElo "2412"]
[BlackElo "2546"]
[TimeControl "180+1"]
[EndTime "11:55:35 PDT"]
[Termination "korbul won by resignation"]

1. e4 {[%clk 0:03:00.4]} 1... c5 {[%clk 0:02:59.3]} 2. Nc3 {[%clk 0:02:51.9]}
2... e6 {[%clk 0:02:58.9]} 3. g3 {[%clk 0:02:46.9]} 3... a6 {[%clk 0:02:58.2]}
4. Bg2 {[%clk 0:02:46.5]} 4... b5 {[%clk 0:02:58.2]} 5. Nf3 {[%clk 0:02:45.8]}
5... Bb7 {[%clk 0:02:58.3]} 6. d3 {[%clk 0:02:45.6]} 6... d6 {[%clk 0:02:58.3]}
7. O-O {[%clk 0:02:44.6]} 7... Nc6 {[%clk 0:02:58.3]} 8. Be3 {[%clk 0:02:37.5]}
8... Nf6 {[%clk 0:02:57.1]} 9. h3 {[%clk 0:02:32.3]} 9... Be7 {[%clk 0:02:56.7]}
10. Kh2 {[%clk 0:02:32.2]} 10... Qc7 {[%clk 0:02:55.6]} 11. Qd2 {[%clk 0:02:30]}
11... h6 {[%clk 0:02:54.5]} 12. Rad1 {[%clk 0:02:27.1]} 12... g5 {[%clk
0:02:50.3]} 13. Ne2 {[%clk 0:02:16.8]} 13... g4 {[%clk 0:02:48.6]} 14. Nh4
{[%clk 0:02:17.1]} 14... O-O-O {[%clk 0:02:38.9]} 15. d4 {[%clk 0:02:15.3]}
15... cxd4 {[%clk 0:02:21.8]} 16. Nxd4 {[%clk 0:02:11.7]} 16... Kb8 {[%clk
0:02:17.3]} 17. f3 {[%clk 0:02:02.1]} 17... gxf3 {[%clk 0:02:10.1]} 18. Bxf3
{[%clk 0:02:01.8]} 18... Ne5 {[%clk 0:02:08.8]} 19. Bg2 {[%clk 0:01:48.3]} 19...
Nc4 {[%clk 0:02:05.8]} 20. Qc1 {[%clk 0:01:45.6]} 20... Nxe3 {[%clk 0:02:03.7]}
21. Qxe3 {[%clk 0:01:46.5]} 21... Rdf8 {[%clk 0:01:59.1]} 22. b3 {[%clk
0:01:39.2]} 22... Nd7 {[%clk 0:01:57.6]} 23. c4 {[%clk 0:01:36.8]} 23... Bxh4
{[%clk 0:01:53.5]} 24. gxh4 {[%clk 0:01:33.9]} 24... d5+ {[%clk 0:01:47.3]} 25.
Kh1 {[%clk 0:01:33.8]} 25... e5 {[%clk 0:01:47]} 26. Nf5 {[%clk 0:01:04.6]}
26... d4 {[%clk 0:01:46.4]} 27. Qd3 {[%clk 0:01:04.6]} 27... Nc5 {[%clk
0:01:44.3]} 28. Qe2 {[%clk 0:01:00.1]} 28... b4 {[%clk 0:01:38.1]} 29. a3 {[%clk
0:00:53]} 29... a5 {[%clk 0:01:36.4]} 30. axb4 {[%clk 0:00:52.9]} 30... axb4
{[%clk 0:01:36.1]} 31. Ra1 {[%clk 0:00:51.4]} 31... Rhg8 {[%clk 0:01:34.6]} 32.
Nxh6 {[%clk 0:00:43.8]} 32... Rxg2 {[%clk 0:01:33.5]} 33. Kxg2 {[%clk
0:00:43.9]} 33... Bxe4+ {[%clk 0:01:32.9]} 34. Kh2 {[%clk 0:00:43.1]} 34... Bd3
{[%clk 0:01:32.3]} 35. Qg2 {[%clk 0:00:34.8]} 35... e4+ {[%clk 0:01:28.6]} 36.
Kh1 {[%clk 0:00:30.6]} 36... Bxf1 {[%clk 0:01:27.5]} 37. Qxf1 {[%clk 0:00:30.6]}
37... f5 {[%clk 0:01:15.2]} 38. Nxf5 {[%clk 0:00:27.9]} 38... Qe5 {[%clk
0:01:01.6]} 39. Qe1 {[%clk 0:00:26.7]} 39... Nd3 {[%clk 0:01:00.3]} 40. Ra8+
{[%clk 0:00:16.4]} 40... Kxa8 {[%clk 0:00:56.5]} 41. Qa1+ {[%clk 0:00:17]} 41...
Kb7 {[%clk 0:00:55.8]} 0-1

[Event "*** Titled Tuesday Blitz"]
[Site "Chess.com"]
[Date "2021.04.06"]
[Round "10"]
[White "serena-maria"]
[Black "lukazz029"]
[Result "1-0"]
[WhiteElo "2346"]
[BlackElo "2135"]
[TimeControl "180+1"]
[EndTime "11:55:38 PDT"]
[Termination "serena-maria won by resignation"]

1. Nf3 {[%clk 0:02:55.2]} 1... c5 {[%clk 0:02:59.5]} 2. g3 {[%clk 0:02:54.3]}
2... g6 {[%clk 0:02:56.6]} 3. Bg2 {[%clk 0:02:53.6]} 3... Bg7 {[%clk 0:02:57.5]}
4. d4 {[%clk 0:02:53.7]} 4... cxd4 {[%clk 0:02:58]} 5. Nxd4 {[%clk 0:02:54.6]}
5... Nf6 {[%clk 0:02:57.5]} 6. O-O {[%clk 0:02:54.8]} 6... Nc6 {[%clk
0:02:55.6]} 7. Nb3 {[%clk 0:02:54.2]} 7... O-O {[%clk 0:02:55.1]} 8. Nc3 {[%clk
0:02:54]} 8... d6 {[%clk 0:02:53.5]} 9. h3 {[%clk 0:02:52.1]} 9... Bd7 {[%clk
0:02:51.9]} 10. e4 {[%clk 0:02:49.9]} 10... a6 {[%clk 0:02:51.8]} 11. Nd5 {[%clk
0:02:44.4]} 11... Nxd5 {[%clk 0:02:48.2]} 12. exd5 {[%clk 0:02:45.3]} 12... Ne5
{[%clk 0:02:48.2]} 13. Nd4 {[%clk 0:02:38.3]} 13... Rc8 {[%clk 0:02:46.4]} 14.
Rb1 {[%clk 0:02:37.9]} 14... Nc4 {[%clk 0:02:45.2]} 15. b3 {[%clk 0:02:37.5]}
15... Nb6 {[%clk 0:02:43.9]} 16. c4 {[%clk 0:02:37.4]} 16... Qc7 {[%clk
0:02:41.3]} 17. Bb2 {[%clk 0:02:36.6]} 17... Be8 {[%clk 0:02:29.9]} 18. Bf3
{[%clk 0:02:34]} 18... Nd7 {[%clk 0:02:29.3]} 19. h4 {[%clk 0:02:30]} 19... Nc5
{[%clk 0:02:23.9]} 20. h5 {[%clk 0:02:26.6]} 20... b5 {[%clk 0:02:23.4]} 21. Nc6
{[%clk 0:02:14.4]} 21... Bxc6 {[%clk 0:02:19.7]} 22. dxc6 {[%clk 0:02:11.6]}
22... Bxb2 {[%clk 0:02:10.1]} 23. Rxb2 {[%clk 0:02:12.5]} 23... b4 {[%clk
0:02:10.4]} 24. Kg2 {[%clk 0:02:06.2]} 24... Ne6 {[%clk 0:02:07.9]} 25. Qd2
{[%clk 0:02:02]} 25... a5 {[%clk 0:02:04.5]} 26. Rh1 {[%clk 0:02:00.5]} 26... g5
{[%clk 0:01:56.1]} 27. h6 {[%clk 0:01:56.7]} 27... Kh8 {[%clk 0:01:50]} 28. Bd5
{[%clk 0:01:53.5]} 28... Rg8 {[%clk 0:01:37.1]} 29. Rbb1 {[%clk 0:01:49.9]}
29... Rg6 {[%clk 0:01:32.1]} 30. Rbe1 {[%clk 0:01:45.1]} 30... Kg8 {[%clk
0:01:22.6]} 31. Qd3 {[%clk 0:01:41.1]} 31... Nd8 {[%clk 0:01:17.6]} 32. Be4
{[%clk 0:01:38.2]} 32... Nxc6 {[%clk 0:01:06.8]} 33. Bxg6 {[%clk 0:01:37.4]}
33... fxg6 {[%clk 0:01:05.4]} 34. Qd5+ {[%clk 0:01:37.2]} 34... Kh8 {[%clk
0:01:02.6]} 35. Qxg5 {[%clk 0:01:30.1]} 35... Ne5 {[%clk 0:01:02.6]} 36. Rxe5
{[%clk 0:01:13.3]} 36... dxe5 {[%clk 0:01:03.5]} 37. Re1 {[%clk 0:01:13.1]}
37... Rf8 {[%clk 0:00:58.6]} 38. Qxe5+ {[%clk 0:00:58.5]} 38... Qxe5 {[%clk
0:00:56.5]} 39. Rxe5 {[%clk 0:00:59.4]} 39... Ra8 {[%clk 0:00:51.8]} 40. Rxe7
{[%clk 0:00:59]} 40... a4 {[%clk 0:00:52.3]} 41. Rb7 {[%clk 0:00:58.2]} 41...
axb3 {[%clk 0:00:52.4]} 42. axb3 {[%clk 0:00:59.1]} 42... Kg8 {[%clk 0:00:46.3]}
43. Rxb4 {[%clk 0:00:57.3]} 43... g5 {[%clk 0:00:42.2]} 44. Rb7 {[%clk 0:00:56]}
44... Ra3 {[%clk 0:00:38.1]} 45. c5 {[%clk 0:00:52.8]} 45... Ra2 {[%clk
0:00:36.3]} 46. c6 {[%clk 0:00:52.5]} 1-0

[Event "*** Titled Tuesday Blitz"]
[Site "Chess.com"]
[Date "2021.04.06"]
[Round "10"]
[White "AttackSparrow"]
[Black "olksuna"]
[Result "0-1"]
[WhiteElo "2550"]
[BlackElo "2679"]
[TimeControl "180+1"]
[EndTime "11:55:39 PDT"]
[Termination "olksuna won by resignation"]

1. e4 {[%clk 0:03:00.9]} 1... c5 {[%clk 0:02:59.4]} 2. c3 {[%clk 0:03:01]} 2...
Nf6 {[%clk 0:02:58.5]} 3. e5 {[%clk 0:03:00.3]} 3... Nd5 {[%clk 0:02:59.1]} 4.
d4 {[%clk 0:03:00.7]} 4... cxd4 {[%clk 0:02:58.4]} 5. Nf3 {[%clk 0:03:01.2]}
5... Nc6 {[%clk 0:02:58.3]} 6. cxd4 {[%clk 0:03:01.6]} 6... d6 {[%clk
0:02:58.7]} 7. Bc4 {[%clk 0:03:02.1]} 7... e6 {[%clk 0:02:56.4]} 8. O-O {[%clk
0:03:01.7]} 8... Be7 {[%clk 0:02:56.8]} 9. Bd2 {[%clk 0:03:00.3]} 9... O-O
{[%clk 0:02:55.4]} 10. Nc3 {[%clk 0:03:00.5]} 10... Nxc3 {[%clk 0:02:50.8]} 11.
Bxc3 {[%clk 0:03:01.4]} 11... dxe5 {[%clk 0:02:46.5]} 12. dxe5 {[%clk
0:03:02.3]} 12... a6 {[%clk 0:02:47.2]} 13. Qe2 {[%clk 0:03:00.2]} 13... b5
{[%clk 0:02:47.1]} 14. Bd3 {[%clk 0:02:56.5]} 14... Bb7 {[%clk 0:02:47.2]} 15.
Rfd1 {[%clk 0:02:51.3]} 15... Qb6 {[%clk 0:02:46.8]} 16. h4 {[%clk 0:02:48.7]}
16... Rfd8 {[%clk 0:02:36.3]} 17. h5 {[%clk 0:02:44.9]} 17... b4 {[%clk
0:02:35.9]} 18. Bd2 {[%clk 0:02:42.3]} 18... Nd4 {[%clk 0:02:31.2]} 19. Nxd4
{[%clk 0:02:41.9]} 19... Qxd4 {[%clk 0:02:29.8]} 20. Bg5 {[%clk 0:02:13.6]}
20... Bxg5 {[%clk 0:02:27.4]} 21. Bxh7+ {[%clk 0:02:13.6]} 21... Kxh7 {[%clk
0:02:28.1]} 22. Rxd4 {[%clk 0:02:14.1]} 22... Rxd4 {[%clk 0:02:28.7]} 23. Qc2+
{[%clk 0:02:10.5]} 23... Be4 {[%clk 0:02:24.3]} 24. Qc7 {[%clk 0:02:10.9]} 24...
Kg8 {[%clk 0:02:18.6]} 25. Qb6 {[%clk 0:01:55.7]} 25... Rad8 {[%clk 0:02:16.5]}
26. Kh2 {[%clk 0:01:48.4]} 26... Bf4+ {[%clk 0:02:09.6]} 27. g3 {[%clk
0:01:47.9]} 27... Bxe5 {[%clk 0:02:02]} 28. Re1 {[%clk 0:01:47.3]} 28... Bf6
{[%clk 0:01:35.5]} 29. Qxa6 {[%clk 0:01:38.8]} 29... R8d5 {[%clk 0:01:35.6]} 30.
Qc8+ {[%clk 0:01:28.1]} 30... Bd8 {[%clk 0:01:22.5]} 31. g4 {[%clk 0:01:22.1]}
31... Bf3 {[%clk 0:01:19.9]} 32. Re3 {[%clk 0:01:03.5]} 32... Bxg4 {[%clk
0:01:16]} 33. f3 {[%clk 0:00:59.8]} 33... Bxh5 {[%clk 0:01:12.4]} 34. Qc6 {[%clk
0:00:53.9]} 34... Bf6 {[%clk 0:01:04.5]} 35. Qc8+ {[%clk 0:00:39.7]} 35... Kh7
{[%clk 0:01:02.8]} 36. f4 {[%clk 0:00:37.6]} 36... Rxf4 {[%clk 0:00:59.9]} 37.
Kg3 {[%clk 0:00:37.8]} 37... Rg4+ {[%clk 0:00:57.4]} 38. Kh3 {[%clk 0:00:38.1]}
38... Rdg5 {[%clk 0:00:42.5]} 39. a4 {[%clk 0:00:33.3]} 39... bxa3 {[%clk
0:00:39.8]} 40. bxa3 {[%clk 0:00:34.2]} 40... Rh4+ {[%clk 0:00:34.1]} 41. Kxh4
{[%clk 0:00:33.8]} 41... Rc5+ {[%clk 0:00:34.3]} 0-1